bitfinex-derivatives/quotes_BNBF0:USTF0_20250302
["timestamp","ask_amount","ask_price","bid_price","bid_amount"]
[1740941341463,3.134,626.95,626.34,0.26244153]
[1740941343958,2.036,626.95,626.34,0.26244153]
[1740941344162,2.036,626.95,626.35,0.31931028]
[1740941344858,2.036,626.95,626.42,1.17647357]
[1740941345367,2.036,626.95,626.43,0.31926951]
[1740941348365,0.923,626.95,626.43,0.31926951]
[1740941354767,1.119,626.97,626.43,0.31926951]
[1740941360568,1.119,626.97,626.44,0.26243798]
[1740941360769,1.119,626.97,626.45,0.31925931]
[1740941360969,1.119,626.97,626.46,0.26243798]
[1740941361869,1.119,626.97,626.48,1.17647357]
[1740941362371,1.119,626.97,626.49,0.31923893]
[1740941362872,1.119,626.97,626.5,0.26243674]
[1740941363173,1.119,626.97,626.51,0.31922874]
[1740941366769,0.769,627.13,626.51,0.31922874]
[1740941366973,1.714,627.13,626.51,0.31922874]
[1740941369771,2.539,627.13,626.51,0.31922874]
[1740941372568,2.539,627.13,626.57,1.17647357]
[1740941372874,2.539,627.13,626.58,0.31919307]
[1740941382079,1.77,627.13,626.58,0.31919307]
[1740941383878,0.945,627.13,626.58,0.31919307]
[1740941388173,3.843,627.2,626.58,0.31919307]
[1740941395679,3.843,627.2,626.61,1.17647357]
[1740941395982,2.757,627.2,626.62,0.3191727]
[1740941396384,1.688,627.2,626.62,0.3191727]
[1740941399084,1.688,627.2,626.63,0.26231446]
[1740941399287,1.688,627.2,626.64,0.31916251]
[1740941399481,1.688,627.2,626.65,0.26231446]
[1740941399683,1.688,627.2,626.66,0.31915233]
[1740941399884,1.688,627.2,626.67,0.26231446]
[1740941400083,1.688,627.2,626.68,0.31914214]
[1740941400292,1.688,627.2,626.69,0.26231446]
[1740941400491,1.688,627.2,626.7,0.31913196]
[1740941400784,1.688,627.2,626.73,1.17647357]
[1740941400988,1.688,627.2,626.74,0.26231446]
[1740941401184,1.688,627.2,626.74,0.58142605]
[1740941401389,1.688,627.2,626.75,0.26231446]
[1740941402090,0.841,627.2,626.76,0.31910141]
[1740941402286,0.841,627.2,626.77,0.26231446]
[1740941402792,0.841,627.2,626.78,0.5814029]
[1740941402989,0.841,627.2,626.73,1.17647357]
[1740941402990,0.841,627.2,626.79,0.58139781]
[1740941403193,0.841,627.2,626.8,0.58139272]
[1740941403492,0.841,627.2,626.81,0.26231168]
[1740941404399,0.841,627.2,626.8,0.31908104]
[1740941405101,0.841,627.2,626.81,0.26230466]
[1740941405401,0.841,627.2,626.8,0.31908104]
[1740941405402,0.841,627.2,626.82,0.31907086]
[1740941409595,0.841,627.2,626.83,0.26226807]
[1740941409800,0.841,627.2,626.84,0.31906068]
[1740941416105,0.851,627.25,626.84,0.31906068]
[1740941418706,0.851,627.25,626.85,0.26225843]
[1740941419001,0.851,627.25,626.86,0.3190505]
[1740941421501,1.048,627.37,626.86,0.3190505]
[1740941423408,0.783,627.46,626.86,0.3190505]
[1740941428518,0.783,627.46,626.87,0.26223303]
[1740941428912,0.783,627.46,626.88,0.31904032]
[1740941429112,0.783,627.46,626.89,0.26223303]
[1740941429314,0.783,627.46,626.9,0.31903014]
[1740941430817,0.783,627.46,626.99,1.17647357]
[1740941431017,0.783,627.46,627.0,0.31897926]
[1740941450133,0.783,627.46,627.01,1.17647357]
[1740941450334,0.783,627.46,627.02,0.31896909]
[1740941452236,1.375,627.48,627.02,0.31896909]
[1740941454833,0.759,627.62,627.02,0.31896909]
[1740941459041,0.759,627.62,627.02,1.49544266]
[1740941461544,0.759,627.62,627.12,1.17647357]
[1740941462236,0.759,627.62,627.13,0.26212649]
[1740941463336,0.759,627.62,627.12,1.17647357]
[1740941463643,0.759,627.62,627.13,0.31891314]
[1740941465242,0.759,627.62,627.32,1.17647357]
[1740941467137,0.759,627.62,627.33,0.31881147]
[1740941468036,1.519,627.75,627.33,0.31881147]
[1740941475353,2.011,627.95,627.33,0.31881147]
[1740941475856,0.29282659,627.94,627.33,0.31881147]
[1740941477052,2.011,627.95,627.33,0.31881147]
[1740941478952,2.011,627.95,626.83,1.66402346]
[1740941479152,2.011,627.95,626.84,0.31906068]
[1740941479755,0.29288871,627.94,626.84,0.31906068]
[1740941481055,2.011,627.95,626.84,0.31906068]
[1740941482359,2.931,627.95,626.84,0.31906068]
[1740941485461,0.29287195,627.94,626.84,0.31906068]
[1740941486263,2.931,627.95,626.84,0.31906068]
[1740941486464,0.29288375,627.94,626.84,0.31906068]
[1740941487159,2.931,627.95,626.84,0.31906068]
[1740941487957,3.746,627.95,626.84,0.31906068]
[1740941489463,0.29291167,627.94,626.84,0.31906068]
[1740941489667,4.595,627.95,626.84,0.31906068]
[1740941492774,0.29287748,627.94,626.84,0.31906068]
[1740941492974,4.595,627.95,626.84,0.31906068]
[1740941493273,0.29290166,627.94,626.84,0.31906068]
[1740941494573,4.595,627.95,626.84,0.31906068]
[1740941494776,0.29291785,627.94,626.84,0.31906068]
[1740941498372,1.24291785,627.94,626.84,0.31906068]
[1740941498574,0.29291785,627.93,626.84,0.31906068]
[1740941499677,0.29291987,627.92,626.84,0.31906068]
[1740941499977,0.29291987,627.91,626.84,0.31906068]
[1740941500273,0.29291987,627.9,626.84,0.31906068]
[1740941500579,0.29291987,627.89,626.84,0.31906068]
[1740941500878,0.29291987,627.88,626.84,0.31906068]
[1740941501078,0.29293599,627.93,626.84,0.31906068]
[1740941501279,0.95,627.94,626.84,0.31906068]
[1740941501479,0.29293215,627.93,626.84,0.31906068]
[1740941502080,0.916,627.92,626.84,0.31906068]
[1740941502380,0.29293215,627.91,626.84,0.31906068]
[1740941505782,0.29293215,627.91,626.85,0.26227765]
[1740941506279,0.29289284,627.9,626.86,0.58132774]
[1740941506584,0.29289284,627.89,626.87,0.58131086]
[1740941506783,0.29289284,627.88,626.88,0.31904032]
[1740941506983,0.29289284,627.87,626.88,0.31904032]
[1740941507184,0.29289284,627.86,626.88,0.31904032]
[1740941507482,0.29289284,627.85,626.88,0.31904032]
[1740941507783,0.29289284,627.84,626.88,0.31904032]
[1740941507984,0.29289284,627.91,626.88,0.31904032]
[1740941508183,0.29289284,627.9,626.88,0.31904032]
[1740941508382,0.29289284,627.91,626.88,0.31904032]
[1740941508582,0.29289284,627.9,626.88,0.31904032]
[1740941508883,0.29289284,627.89,626.88,0.31904032]
[1740941509084,0.29289284,627.88,626.88,0.31904032]
[1740941509282,0.29289284,627.91,626.88,0.31904032]
[1740941509482,0.29289284,627.9,626.88,0.31904032]
[1740941509685,0.29289284,627.91,626.88,0.31904032]
[1740941509881,0.29289284,627.9,626.88,0.31904032]
[1740941510079,0.29289284,627.89,626.88,0.31904032]
[1740941510387,0.29289284,627.88,626.88,0.31904032]
[1740941510577,0.29289284,627.87,626.88,0.31904032]
[1740941510783,0.29289284,627.86,626.88,0.31904032]
[1740941512889,1.078,627.85,626.88,0.31904032]
[1740941513090,0.29289284,627.84,626.88,0.31904032]
[1740941515891,1.078,627.85,626.88,0.31904032]
[1740941516090,0.29293842,627.84,626.88,0.31904032]
[1740941516587,1.253,627.83,626.88,0.31904032]
[1740941516789,0.29293842,627.82,626.88,0.31904032]
[1740941519289,1.36493842,627.82,626.88,0.31904032]
[1740941519489,0.29293842,627.81,626.88,0.31904032]
[1740941520692,0.29292267,627.8,626.88,0.31904032]
[1740941520889,0.29292267,627.79,626.88,0.31904032]
[1740941521089,1.072,627.82,626.88,0.31904032]
[1740941521887,1.072,627.82,626.9,1.17647357]
[1740941522089,1.072,627.82,626.91,0.31902505]
[1740941525196,1.072,627.82,627.06,1.17647357]
[1740941527390,1.072,627.82,626.91,0.31902505]
[1740941527391,1.072,627.82,626.97,1.17647357]
[1740941527789,1.072,627.82,626.98,0.31898944]
[1740941530290,2.152,627.82,626.98,0.31898944]
[1740941535895,3.326,627.82,626.98,0.31898944]
[1740941538002,0.29294773,627.81,626.98,0.31898944]
[1740941538797,0.29294773,627.81,626.5,1.17647357]
[1740941539102,0.29294773,627.81,626.51,1.66475979]
[1740941539603,3.326,627.82,626.52,0.31922364]
[1740941539805,0.29301935,627.81,626.52,0.31922364]
[1740941540405,0.29301935,627.81,626.75,1.17647357]
[1740941541412,0.29302571,627.8,626.75,1.17647357]
[1740941541606,0.29302571,627.81,626.75,1.17647357]
[1740941541808,3.326,627.82,626.75,1.17647357]
[1740941542008,0.29302968,627.81,626.75,1.17647357]
[1740941542310,0.823,627.8,626.75,1.17647357]
[1740941542513,0.29302968,627.79,626.75,1.17647357]
[1740941543212,0.29302968,627.79,626.52,0.31922364]
[1740941545614,0.29302968,627.79,626.53,0.26239861]
[1740941545913,0.29302968,627.79,626.54,0.31921345]
[1740941546310,0.29302968,627.79,626.55,0.26238356]
[1740941546613,0.29302968,627.79,626.57,0.31919817]
[1740941546808,2.027,627.8,626.57,0.31919817]
[1740941550113,0.791,627.79,626.57,0.31919817]
[1740941550516,0.791,627.79,626.58,0.26232404]
[1740941552215,0.791,627.79,626.6,0.31918289]
[1740941553514,1.275,627.78,626.6,0.31918289]
[1740941554510,0.892,627.77,626.6,0.31918289]
[1740941559716,1.262,627.76,626.6,0.31918289]
[1740941570929,0.29303635,627.75,626.6,0.31918289]
[1740941571130,0.29303635,627.74,626.6,0.31918289]
[1740941571332,0.29303635,627.77,626.6,0.31918289]
[1740941571926,0.29303635,627.79,626.6,0.31918289]
[1740941572129,0.29303635,627.78,626.6,0.31918289]
[1740941572330,1.204,627.8,626.6,0.31918289]
[1740941572530,0.29306093,627.79,626.6,0.31918289]
[1740941574227,0.31858294,627.78,626.6,0.31918289]
[1740941574427,0.29306093,627.77,626.6,0.31918289]
[1740941574833,0.821,627.76,626.6,0.31918289]
[1740941575033,0.29306093,627.75,626.6,0.31918289]
[1740941575234,0.61165909,627.75,626.6,0.31918289]
[1740941575433,0.61166417,627.74,626.53,1.17647357]
[1740941575730,0.61166924,627.73,626.53,1.17647357]
[1740941575936,0.61167432,627.72,626.53,1.17647357]
[1740941576130,0.6116794,627.71,626.53,1.17647357]
[1740941576436,0.61168447,627.7,626.53,1.17647357]
[1740941576630,0.61168955,627.69,626.53,1.17647357]
[1740941576833,0.61169462,627.68,626.53,1.17647357]
[1740941577032,0.6116997,627.67,626.53,1.17647357]
[1740941577233,0.31864385,627.66,626.53,1.17647357]
[1740941577531,0.29316228,627.65,626.21,1.17647357]
[1740941577735,0.318654,627.64,626.22,0.31937657]
[1740941577935,0.29316228,627.63,626.22,0.31937657]
[1740941579037,0.31866415,627.62,626.22,0.31937657]
[1740941579337,0.29316228,627.61,626.22,0.31937657]
[1740941579539,0.31867431,627.6,626.22,0.31937657]
[1740941579734,0.29316228,627.59,626.22,0.31937657]
[1740941580737,0.61184167,627.59,626.22,0.31937657]
[1740941580937,0.29316228,627.58,626.22,0.31937657]
[1740941582739,0.31868954,627.57,626.22,0.31937657]
[1740941582939,0.29316228,627.56,626.22,0.31937657]
[1740941583242,0.3186997,627.55,626.22,0.31937657]
[1740941583441,0.29316228,627.54,626.22,0.31937657]
[1740941583740,0.61187214,627.53,626.22,0.31937657]
[1740941583933,0.61187722,627.52,626.22,0.31937657]
[1740941584138,0.6118823,627.51,626.22,0.31937657]
[1740941584342,0.29316228,627.5,626.22,0.31937657]
[1740941584641,0.31873017,627.49,626.22,0.31937657]
[1740941584837,0.29316228,627.48,626.22,0.31937657]
[1740941585738,0.31874033,627.47,626.22,0.31937657]
[1740941586041,0.29316228,627.46,626.22,0.31937657]
[1740941586837,0.61206296,627.45,626.22,0.31937657]
[1740941587038,0.61206804,627.44,626.22,0.31937657]
[1740941587240,0.61207312,627.43,626.22,0.31937657]
[1740941587440,0.31876573,627.42,625.72,1.17647357]
[1740941587636,0.29331247,627.41,625.73,0.5823635]
[1740941587939,0.29331247,627.4,625.74,0.58235839]
[1740941588142,0.31878606,627.38,625.75,0.58235329]
[1740941588342,0.29331247,627.37,625.76,0.58234818]
[1740941588541,0.29331247,627.36,625.77,0.26273683]
[1740941588739,0.29331247,627.35,625.78,0.31960113]
[1740941588935,0.29331247,627.34,625.79,0.26273683]
[1740941589136,0.29331247,627.33,625.78,0.31960113]
[1740941589340,0.29331247,627.32,625.78,0.31960113]
[1740941589540,0.29331247,627.31,625.78,0.31960113]
[1740941589741,0.29331247,627.3,625.78,0.31960113]
[1740941589937,0.29331247,627.29,625.78,0.31960113]
[1740941590142,0.31884196,627.27,625.78,0.31960113]
[1740941590342,0.29331247,627.26,625.78,0.31960113]
[1740941590538,0.31885721,627.24,625.78,0.31960113]
[1740941590840,0.29331247,627.23,625.78,0.31960113]
[1740941591047,0.31886738,627.22,625.78,0.31960113]
[1740941591245,0.29331247,627.21,625.78,0.31960113]
[1740941591852,0.2933834,627.2,625.78,0.31960113]
[1740941592047,0.2933834,627.19,625.78,0.31960113]
[1740941592248,0.2933834,627.18,625.78,0.31960113]
[1740941592452,0.3188928,627.17,625.78,0.31960113]
[1740941592653,0.2933834,627.16,625.78,0.31960113]
[1740941592852,0.31890297,627.15,625.78,0.31960113]
[1740941593054,0.2933834,627.14,625.78,0.31960113]
[1740941593255,0.31891314,627.13,625.78,0.31960113]
[1740941593550,0.2933834,627.12,625.78,0.31960113]
[1740941594351,0.31892331,627.11,625.78,0.31960113]
[1740941594752,1.96085018,627.1,625.78,0.31960113]
[1740941594949,0.61237166,627.09,625.78,0.31960113]
[1740941595155,0.61237675,627.08,625.78,0.31960113]
[1740941595350,0.61238183,627.07,625.78,0.31960113]
[1740941595551,0.61238692,627.06,625.78,0.31960113]
[1740941595754,0.29343818,627.05,625.78,0.31960113]
[1740941596752,0.31895891,627.04,625.78,0.31960113]
[1740941596949,0.29343818,627.03,625.78,0.31960113]
[1740941599858,1.6672722,627.02,625.78,0.31960113]
[1740941600157,0.29343818,627.01,625.78,0.31960113]
[1740941600552,1.186,627.0,625.78,0.31960113]
[1740941600752,0.29343818,626.99,625.78,0.31960113]
[1740941601659,0.29344044,626.98,625.78,0.31960113]
[1740941601858,0.29344044,626.97,625.78,0.31960113]
[1740941602058,0.29344044,626.96,625.78,0.31960113]
[1740941602257,0.29344044,626.99,625.78,0.31960113]
[1740941602456,0.29344044,626.98,625.78,0.31960113]
[1740941602654,0.29344044,626.99,625.78,0.31960113]
[1740941602851,0.29344044,626.98,625.78,0.31960113]
[1740941603056,0.29344044,626.99,625.78,0.31960113]
[1740941603257,0.29340122,626.98,625.78,0.31960113]
[1740941603459,0.29340122,626.97,625.78,0.31960113]
[1740941603656,0.29340122,626.96,625.78,0.31960113]
[1740941603856,0.29340122,626.99,625.78,0.31960113]
[1740941604053,1.186,627.0,625.78,0.31960113]
[1740941605256,0.29340321,626.99,625.78,0.31960113]
[1740941606561,0.29348584,626.98,625.78,0.31960113]
[1740941606761,0.29348584,626.97,625.78,0.31960113]
[1740941607061,0.29348584,626.96,625.78,0.31960113]
[1740941607255,0.29348584,626.95,625.78,0.31960113]
[1740941607762,1.43748584,626.95,625.78,0.31960113]
[1740941607961,0.29348584,626.94,625.78,0.31960113]
[1740941608157,1.144,626.95,625.78,0.31960113]
[1740941608358,1.22747548,626.94,625.78,0.31960113]
[1740941608563,0.29347548,626.93,625.78,0.31960113]
[1740941611366,0.934,626.94,625.78,0.31960113]
[1740941611565,0.29347359,626.93,625.78,0.31960113]
[1740941614866,0.29342694,626.92,625.78,0.31960113]
[1740941615062,0.29342694,626.93,625.78,0.31960113]
[1740941615267,0.29342694,626.92,625.78,0.31960113]
[1740941615466,0.29342694,626.93,625.78,0.31960113]
[1740941615659,0.29342694,626.92,625.78,0.31960113]
[1740941615861,0.934,626.94,625.78,0.31960113]
[1740941615862,0.29342694,626.93,625.78,0.31960113]
[1740941616061,0.29342694,626.92,625.78,0.31960113]
[1740941616261,0.29342694,626.93,625.78,0.31960113]
[1740941616465,0.29342694,626.92,625.78,0.31960113]
[1740941616764,0.29342694,626.91,625.78,0.31960113]
[1740941616965,0.29342694,626.93,625.78,0.31960113]
[1740941617162,0.29342694,626.92,625.78,0.31960113]
[1740941617366,0.29342694,626.91,625.78,0.31960113]
[1740941617562,0.29342694,626.9,625.78,0.31960113]
[1740941617769,0.997,626.9,625.61,0.31968798]
[1740941618264,0.997,626.9,625.73,1.17647357]
[1740941618465,0.997,626.9,625.74,0.31962156]
[1740941621073,0.997,626.9,625.74,1.49609513]
[1740941623573,0.997,626.9,625.86,1.17647357]
[1740941624073,0.997,626.9,625.87,0.31955517]
[1740941624268,1.239,626.89,625.87,0.31955517]
[1740941626879,1.239,626.89,625.87,1.49602874]
[1740941629173,1.239,626.89,625.88,0.2626936]
[1740941629371,0.29333295,626.88,625.89,0.31954496]
[1740941629772,1.239,626.89,625.89,0.31954496]
[1740941629978,0.29335409,626.88,625.89,0.31954496]
[1740941630274,0.29335409,626.88,625.94,1.17647357]
[1740941634081,1.22,626.87,625.94,1.17647357]
[1740941634381,0.29335409,626.86,625.94,1.17647357]
[1740941635480,1.143,626.85,625.94,1.17647357]
[1740941635680,0.29335409,626.84,625.94,1.17647357]
[1740941636285,0.29335409,626.84,625.89,0.31954496]
[1740941636587,0.854,626.83,625.89,0.31954496]
[1740941636784,0.29335409,626.82,625.89,0.31954496]
[1740941638085,0.854,626.83,625.89,0.31954496]
[1740941638282,0.29345693,626.82,625.89,0.31954496]
[1740941638984,1.46745693,626.82,625.89,0.31954496]
[1740941639185,0.29345693,626.81,625.89,0.31954496]
[1740941639881,0.29345281,626.8,625.89,0.31954496]
[1740941640081,0.29345281,626.79,625.89,0.31954496]
[1740941640385,0.29345281,626.78,625.89,0.31954496]
[1740941640689,1.174,626.82,625.89,0.31954496]
[1740941640886,0.29341824,626.81,625.89,0.31954496]
[1740941641089,1.174,626.82,625.89,0.31954496]
[1740941641388,0.29337259,626.81,625.89,0.31954496]
[1740941641591,1.174,626.82,625.89,0.31954496]
[1740941646292,1.174,626.82,625.9,0.26267028]
[1740941646814,1.174,626.82,625.91,1.17647357]
[1740941647091,1.174,626.82,625.92,0.58219803]
[1740941647290,1.174,626.82,625.92,0.31952965]
[1740941649093,2.282,626.82,625.92,0.31952965]
[1740941649895,2.282,626.82,625.93,0.26270847]
[1740941650193,2.282,626.82,625.94,0.31951944]
[1740941650492,2.282,626.82,625.95,0.26270847]
[1740941650693,2.282,626.82,625.96,0.31950923]
[1740941650896,3.329,626.82,625.96,0.31950923]
[1740941661000,0.2933896,626.81,625.96,0.31950923]
[1740941661899,3.329,626.82,625.96,0.31950923]
[1740941662100,0.29339284,626.81,625.96,0.31950923]
[1740941662505,3.329,626.82,625.96,0.31950923]
[1740941663208,0.29339653,626.81,625.85,1.17647357]
[1740941664502,0.29339653,626.81,625.77,1.17647357]
[1740941664906,1.024,626.8,625.77,1.17647357]
[1740941665209,0.29339653,626.79,625.77,1.17647357]
[1740941668613,0.29339653,626.79,625.57,1.17647357]
[1740941669406,0.31909122,626.78,625.57,1.17647357]
[1740941669813,0.29339653,626.77,625.57,1.17647357]
[1740941670616,0.29339653,626.77,625.39,1.17647357]
[1740941670816,0.29339653,626.77,625.4,0.58271484]
[1740941671011,0.29339653,626.77,625.41,0.58270972]
[1740941671215,0.29339653,626.77,625.42,0.58270461]
[1740941671411,0.29339653,626.77,625.43,0.26291951]
[1740941672117,0.31910141,626.76,625.43,0.26291951]
[1740941672313,0.29339653,626.75,625.42,0.3197851]
[1740941672513,0.31911159,626.74,625.42,0.3197851]
[1740941672717,0.29339653,626.73,625.43,0.2629319]
[1740941672916,0.29339653,626.73,625.42,0.3197851]
[1740941673113,0.31912177,626.72,625.43,0.26293885]
[1740941673417,0.29339653,626.71,625.42,0.3197851]
[1740941673815,0.31913196,626.7,625.42,0.3197851]
[1740941674014,0.29339653,626.69,625.42,0.3197851]
[1740941674415,0.31914214,626.68,625.42,0.3197851]
[1740941674711,0.29339653,626.67,625.42,0.3197851]
[1740941674921,0.31914214,626.68,625.42,0.3197851]
[1740941675122,0.29357727,626.67,625.42,0.3197851]
[1740941677924,0.29357727,626.67,625.43,0.26290667]
[1740941678119,0.29357727,626.67,625.44,0.31977487]
[1740941678325,0.31914214,626.68,625.44,0.31977487]
[1740941678625,1.138,626.66,625.45,0.26287343]
[1740941678923,1.138,626.66,625.46,0.31976465]
[1740941679127,1.138,626.66,625.47,0.26287343]
[1740941679424,0.833,626.65,625.47,0.26287343]
[1740941680028,0.833,626.65,625.49,0.31974931]
[1740941680328,0.833,626.65,625.5,0.26282927]
[1740941680523,0.833,626.65,625.52,0.31973398]
[1740941680720,0.833,626.65,625.53,0.26282927]
[1740941681727,0.833,626.65,625.52,0.31973398]
[1740941681922,0.833,626.65,625.53,0.2628108]
[1740941682324,0.833,626.65,625.54,0.31972375]
[1740941682526,0.833,626.65,625.55,0.2628108]
[1740941682829,0.833,626.65,625.56,0.31971353]
[1740941683021,0.833,626.65,625.57,0.2628108]
[1740941683223,0.833,626.65,625.58,0.31970331]
[1740941683625,0.833,626.65,625.59,0.2628108]
[1740941684029,0.814,626.64,625.59,0.2628108]
[1740941684224,0.814,626.64,625.6,0.31969309]
[1740941684429,0.814,626.64,625.61,0.2628108]
[1740941684630,0.814,626.64,625.62,0.31968287]
[1740941684829,0.814,626.64,625.63,0.2628108]
[1740941685025,0.814,626.64,625.62,0.31968287]
[1740941686231,1.608,626.63,625.62,0.31968287]
[1740941693737,1.6680314,626.62,625.62,0.31968287]
[1740941694036,0.29356315,626.61,625.62,0.31968287]
[1740941694639,1.114,626.6,625.62,0.31968287]
[1740941694837,0.29356315,626.59,625.62,0.31968287]
[1740941698438,1.114,626.6,625.62,0.31968287]
[1740941698638,0.2935905,626.59,625.62,0.31968287]
[1740941698838,1.114,626.6,625.62,0.31968287]
[1740941702345,1.076,626.59,625.62,0.31968287]
[1740941702748,1.076,626.59,625.63,0.26280514]
[1740941702945,1.076,626.59,625.64,0.31967265]
[1740941703544,1.076,626.59,625.65,0.26277492]
[1740941703945,1.076,626.59,625.66,0.31966243]
[1740941704145,1.076,626.59,625.67,0.26277492]
[1740941704638,1.076,626.59,625.68,0.26274265]
[1740941705037,1.076,626.59,625.69,0.58238975]
[1740941705245,1.076,626.59,625.7,0.58238465]
[1740941705440,1.076,626.59,625.71,0.58237954]
[1740941705647,1.076,626.59,625.72,0.58237443]
[1740941706041,1.076,626.59,625.73,0.26274265]
[1740941706239,0.835,626.58,625.73,0.26274265]
[1740941706644,1.981,626.58,625.73,0.26274265]
[1740941706850,1.981,626.58,625.75,1.17647357]
[1740941707044,1.981,626.58,625.76,0.26274265]
[1740941707244,1.981,626.58,625.77,0.31960624]
[1740941707441,3.332,626.58,625.78,0.26274265]
[1740941707640,3.332,626.58,625.79,0.31959603]
[1740941707844,3.332,626.58,625.8,0.26274265]
[1740941708050,3.332,626.58,625.81,0.31958581]
[1740941708348,3.332,626.58,625.82,0.26274265]
[1740941708550,3.332,626.58,625.83,0.3195756]
[1740941708750,3.332,626.58,625.84,0.26274265]
[1740941708946,3.332,626.58,625.85,0.31956539]
[1740941709150,3.332,626.58,625.86,0.26274265]
[1740941709346,3.332,626.58,625.87,0.31955517]
[1740941709547,3.332,626.58,625.88,0.26274265]
[1740941709850,3.332,626.58,625.89,0.31954496]
[1740941710046,3.332,626.58,625.9,0.26274265]
[1740941710651,3.332,626.58,625.91,0.31953475]
[1740941710850,3.332,626.58,625.92,0.26274265]
[1740941711251,3.332,626.58,625.93,0.31952454]
[1740941711447,3.332,626.58,625.94,0.26274265]
[1740941711645,3.332,626.58,625.95,0.31951433]
[1740941711851,3.332,626.58,625.96,0.26274265]
[1740941712051,4.602,626.58,625.97,0.31950412]
[1740941712247,4.602,626.58,625.98,0.26274265]
[1740941712446,4.602,626.58,625.99,0.31949392]
[1740941712651,4.602,626.58,626.0,0.26274265]
[1740941712856,4.602,626.58,626.01,0.31948371]
[1740941713052,4.602,626.58,626.02,0.26274265]
[1740941713253,4.602,626.58,626.03,0.3194735]
[1740941718957,4.602,626.58,626.04,0.26263419]
[1740941719760,4.602,626.58,626.05,0.3194633]
[1740941719958,4.602,626.58,626.06,0.26263419]
[1740941720159,4.602,626.58,626.07,0.31945309]
[1740941720354,4.602,626.58,626.08,0.26263419]
[1740941720554,4.602,626.58,626.09,0.31944289]
[1740941720755,4.602,626.58,626.1,0.26263419]
[1740941720955,4.602,626.58,626.09,0.31944289]
[1740941721560,4.602,626.58,626.1,0.26260131]
[1740941723362,4.602,626.58,626.11,0.31943268]
[1740941723561,4.602,626.58,626.12,0.26260131]
[1740941724360,3.767,626.58,626.11,0.31943268]
[1740941724563,3.767,626.58,626.13,0.31942248]
[1740941724763,3.767,626.58,626.14,0.26250922]
[1740941725667,2.621,626.58,626.14,0.26250922]
[1740941726967,2.621,626.58,626.15,0.31941228]
[1740941727165,2.621,626.58,626.16,0.26250922]
[1740941728870,2.621,626.58,626.17,0.31940207]
[1740941729063,2.621,626.58,626.18,0.26250922]
[1740941729466,1.27,626.58,626.18,0.26250922]
[1740941730169,1.27,626.58,626.19,0.31939187]
[1740941730369,1.27,626.58,626.2,0.26250922]
[1740941732466,1.27,626.58,626.21,0.31938167]
[1740941732667,1.27,626.58,626.22,0.26250922]
[1740941732873,1.27,626.58,626.23,0.31937147]
[1740941733067,1.27,626.58,626.24,0.26250922]
[1740941734072,1.076,626.59,626.25,0.31936127]
[1740941734473,1.311,627.08,626.25,0.31936127]
[1740941741687,2.651,627.08,626.25,0.31936127]
[1740941743079,2.651,627.08,626.26,0.26246557]
[1740941743284,2.651,627.08,626.27,0.31935107]
[1740941745891,3.76,627.08,626.27,0.31935107]
[1740941746695,3.76,627.08,626.42,1.17647357]
[1740941749192,3.76,627.08,626.41,1.17647357]
[1740941749995,5.011,627.08,626.41,1.17647357]
[1740941751195,5.011,627.08,626.47,1.17647357]
[1740941751593,3.7,627.08,626.47,1.17647357]
[1740941752798,2.36,627.08,626.47,1.17647357]
[1740941752998,2.36,627.08,626.47,1.49572269]
[1740941753193,2.36,627.08,626.48,0.31924403]
[1740941754994,2.36,627.08,626.49,1.17647357]
[1740941755198,2.36,627.08,626.5,0.31923383]
[1740941757701,2.36,627.08,626.67,1.17647357]
[1740941759498,2.36,627.08,626.65,1.17647357]
[1740941761602,2.36,627.08,626.63,1.17647357]
[1740941764897,1.251,627.08,626.63,1.17647357]
[1740941765101,1.251,627.08,626.5,0.31923383]
[1740941765102,1.251,627.08,626.74,1.17647357]
[1740941767798,1.251,627.08,626.72,1.17647357]
[1740941767998,1.251,627.08,626.72,1.49559534]
[1740941768999,1.251,627.08,626.73,0.31911668]
[1740941772105,1.369,627.1,626.73,0.31911668]
[1740941773001,1.15,627.12,626.73,0.31911668]
[1740941773200,1.15,627.12,626.74,1.17647357]
[1740941773404,1.15,627.12,626.75,0.3191065]
[1740941781114,1.243,627.36,626.75,0.3191065]
[1740941785216,1.243,627.36,626.56,1.17647357]